[Event "Titled Tuesday Blitz May 23 Early 2023"]
[White "Sokolov, Andrei"]
[Black "Jimenez Fernandez, Rebeca"]
[WhiteFideId "11600306"]
[BlackFideId "32070934"]
[WhiteElo "2473"]
[BlackElo "2008"]
[Result "1-0"]
[Round "08"]
[TimeControl "180+2"]
[Date "2023.05.23"]
[WhiteClock "0:00:02"]
[BlackClock "0:00:01"]

1. d4 {[%clk 0:03:00]}  d5 {[%clk 0:02:59]} 2. c4 {[%clk 0:03:00]}  c6 {[%clk 0:02:59]} 3. Nc3 {[%clk 0:02:59]}  Nf6 {[%clk 0:02:58]} 4. cxd5 {[%clk 0:02:59]}  cxd5 {[%clk 0:02:57]} 5. Bf4 {[%clk 0:02:59]}  e6 {[%clk 0:02:52]} 6. e3 {[%clk 0:02:55]}  Bd6 {[%clk 0:02:49]} 7. Bxd6 {[%clk 0:02:54]}  Qxd6 {[%clk 0:02:50]} 8. f4 {[%clk 0:02:54]}  O-O {[%clk 0:02:48]} 9. Nf3 {[%clk 0:02:53]}  a6 {[%clk 0:02:46]} 10. Ne5 {[%clk 0:02:52]}  b5 {[%clk 0:02:45]} 11. a3 {[%clk 0:02:46]}  Bb7 {[%clk 0:02:44]} 12. Bd3 {[%clk 0:02:45]}  Ne4 {[%clk 0:02:34]} 13. O-O {[%clk 0:02:10]}  f6 {[%clk 0:02:28]} 14. Nf3 {[%clk 0:02:06]}  Nd7 {[%clk 0:02:27]} 15. Rc1 {[%clk 0:01:54]}  Nxc3 {[%clk 0:01:51]} 16. Rxc3 {[%clk 0:01:47]}  e5 {[%clk 0:01:50]} 17. fxe5 {[%clk 0:01:34]}  fxe5 {[%clk 0:01:50]} 18. Nxe5 {[%clk 0:01:10]}  Nxe5 {[%clk 0:01:50]} 19. dxe5 {[%clk 0:01:05]}  Qxe5 {[%clk 0:01:51]} 20. Bc2 {[%clk 0:00:58]}  Qg5 {[%clk 0:01:36]} 21. Qd3 {[%clk 0:00:34]}  g6 {[%clk 0:01:01]} 22. Bb3 {[%clk 0:00:26]}  Rxf1+ {[%clk 0:00:54]} 23. Qxf1 {[%clk 0:00:23]}  Rf8 {[%clk 0:00:50]} 24. Qd1 {[%clk 0:00:17]}  Qf5 {[%clk 0:00:42]} 25. h3 {[%clk 0:00:13]}  Qf2+ {[%clk 0:00:16]} 26. Kh2 {[%clk 0:00:13]}  Qxb2 {[%clk 0:00:16]} 27. Bxd5+ {[%clk 0:00:10]}  Bxd5 {[%clk 0:00:16]} 28. Qxd5+ {[%clk 0:00:11]}  Kh8 {[%clk 0:00:15]} 29. Qe5+ {[%clk 0:00:11]}  Kg8 {[%clk 0:00:15]} 30. Qe6+ {[%clk 0:00:08]}  Kh8 {[%clk 0:00:15]} 31. Qe7 {[%clk 0:00:04]}  Kg8 {[%clk 0:00:14]} 32. Rc7 {[%clk 0:00:03]}  Rf2 {[%clk 0:00:11]} 33. Qxh7+ {[%clk 0:00:02]}  Kf8 {[%clk 0:00:11]} 34. Qe7+ {[%clk 0:00:01]}  Kg8 {[%clk 0:00:01]} 35. Rc8+ {[%clk 0:00:02]} 1-0


[Site "https://www.chess.com"]

[Event "Titled Tuesday Blitz May 23 Early 2023"]
[White "Bashirli, Saadat"]
[Black "Omariev, Maksim"]
[WhiteFideId "13429990"]
[BlackFideId "4193423"]
[WhiteElo "1408"]
[BlackElo "2465"]
[Result "0-1"]
[Round "08"]
[TimeControl "180+2"]
[Date "2023.05.23"]
[WhiteClock "0:00:00"]
[BlackClock "0:00:08"]

1. d4 {[%clk 0:03:00]}  h5 {[%clk 0:02:58]} 2. e3 {[%clk 0:02:56]}  h4 {[%clk 0:02:59]} 3. f4 {[%clk 0:02:56]}  a5 {[%clk 0:03:00]} 4. Nf3 {[%clk 0:02:56]}  a4 {[%clk 0:03:01]} 5. Bd3 {[%clk 0:02:56]}  h3 {[%clk 0:03:02]} 6. gxh3 {[%clk 0:02:52]}  d5 {[%clk 0:03:02]} 7. Ng5 {[%clk 0:02:43]}  Nf6 {[%clk 0:03:02]} 8. Qf3 {[%clk 0:02:38]}  c5 {[%clk 0:02:54]} 9. c3 {[%clk 0:02:34]}  Nc6 {[%clk 0:02:53]} 10. Nd2 {[%clk 0:02:33]}  g6 {[%clk 0:02:45]} 11. Rg1 {[%clk 0:02:24]}  Bf5 {[%clk 0:02:17]} 12. e4 {[%clk 0:02:13]}  dxe4 {[%clk 0:02:15]} 13. Ndxe4 {[%clk 0:02:14]}  Nxe4 {[%clk 0:02:07]} 14. Bxe4 {[%clk 0:02:11]}  Bxe4 {[%clk 0:02:01]} 15. Qxe4 {[%clk 0:02:05]}  Qd6 {[%clk 0:01:08]} 16. d5 {[%clk 0:02:00]}  Nb8 {[%clk 0:01:03]} 17. Be3 {[%clk 0:01:44]}  Nd7 {[%clk 0:01:03]} 18. c4 {[%clk 0:01:28]}  Bg7 {[%clk 0:00:59]} 19. Qc2 {[%clk 0:01:14]}  a3 {[%clk 0:00:54]} 20. Ne4 {[%clk 0:00:56]}  Qb6 {[%clk 0:00:25]} 21. Rb1 {[%clk 0:00:44]}  axb2 {[%clk 0:00:25]} 22. a4 {[%clk 0:00:19]}  Rxh3 {[%clk 0:00:23]} 23. d6 {[%clk 0:00:15]}  Rxe3+ {[%clk 0:00:22]} 24. Kd2 {[%clk 0:00:14]}  Bd4 {[%clk 0:00:11]} 25. h4 {[%clk 0:00:05]}  Qb4+ {[%clk 0:00:11]} 26. Kd1 {[%clk 0:00:04]}  Qxa4 {[%clk 0:00:11]} 27. dxe7 {[%clk 0:00:01]}  Rxe4 {[%clk 0:00:09]} 28. Qxa4 {[%clk 0:00:01]}  Rxa4 {[%clk 0:00:08]} 29. h5 {[%clk 0:00:00]}  gxh5 {[%clk 0:00:08]} 0-1


[Site "https://www.chess.com"]

[Event "Titled Tuesday Blitz May 23 Early 2023"]
[White "Thiel, Thomas"]
[Black "Akylbek2021"]
[WhiteFideId "4615964"]
[WhiteElo "2240"]
[BlackElo "2462"]
[Result "1/2-1/2"]
[Round "08"]
[TimeControl "180+2"]
[Date "2023.05.23"]
[WhiteClock "0:00:07"]
[BlackClock "0:01:39"]

1. e4 {[%clk 0:03:00]}  c5 {[%clk 0:02:59]} 2. Nc3 {[%clk 0:02:58]}  Nc6 {[%clk 0:03:00]} 3. Bb5 {[%clk 0:02:56]}  Nd4 {[%clk 0:02:58]} 4. Bc4 {[%clk 0:02:56]}  e6 {[%clk 0:02:58]} 5. Nge2 {[%clk 0:02:55]}  a6 {[%clk 0:02:57]} 6. d3 {[%clk 0:02:53]}  Nc6 {[%clk 0:02:57]} 7. O-O {[%clk 0:02:50]}  b5 {[%clk 0:02:56]} 8. Bb3 {[%clk 0:02:49]}  g6 {[%clk 0:02:56]} 9. f4 {[%clk 0:02:48]}  Bg7 {[%clk 0:02:56]} 10. f5 {[%clk 0:02:48]}  d6 {[%clk 0:02:55]} 11. fxe6 {[%clk 0:02:46]}  Bxe6 {[%clk 0:02:56]} 12. Bxe6 {[%clk 0:02:39]}  fxe6 {[%clk 0:02:57]} 13. Nf4 {[%clk 0:02:30]}  Qd7 {[%clk 0:02:50]} 14. Qg4 {[%clk 0:02:28]}  Nd4 {[%clk 0:02:50]} 15. Bd2 {[%clk 0:02:19]}  Nf6 {[%clk 0:02:49]} 16. Qh3 {[%clk 0:02:15]}  O-O {[%clk 0:02:48]} 17. Rac1 {[%clk 0:02:09]}  Rae8 {[%clk 0:02:47]} 18. Nce2 {[%clk 0:02:06]}  Nxe2+ {[%clk 0:02:46]} 19. Nxe2 {[%clk 0:02:04]}  d5 {[%clk 0:02:45]} 20. e5 {[%clk 0:01:45]}  Nh5 {[%clk 0:02:44]} 21. g4 {[%clk 0:01:38]}  Bxe5 {[%clk 0:02:43]} 22. gxh5 {[%clk 0:01:38]}  gxh5 {[%clk 0:02:43]} 23. Bf4 {[%clk 0:01:35]}  Bg7 {[%clk 0:02:34]} 24. c3 {[%clk 0:01:32]}  Qf7 {[%clk 0:02:28]} 25. d4 {[%clk 0:01:28]}  Qg6+ {[%clk 0:02:24]} 26. Kh1 {[%clk 0:01:26]}  e5 {[%clk 0:02:16]} 27. dxe5 {[%clk 0:01:21]}  Kh8 {[%clk 0:02:11]} 28. Rce1 {[%clk 0:01:04]}  Qe4+ {[%clk 0:02:06]} 29. Qf3 {[%clk 0:01:02]}  Qc2 {[%clk 0:02:06]} 30. Qxd5 {[%clk 0:00:57]}  Rd8 {[%clk 0:02:04]} 31. Qc6 {[%clk 0:00:51]}  Rd3 {[%clk 0:01:57]} 32. Qxc5 {[%clk 0:00:42]}  Rh3 {[%clk 0:01:54]} 33. Bg3 {[%clk 0:00:34]}  Qe4+ {[%clk 0:01:52]} 34. Kg1 {[%clk 0:00:32]}  Rg8 {[%clk 0:01:51]} 35. Nf4 {[%clk 0:00:26]}  Qf5 {[%clk 0:01:50]} 36. Nxh3 {[%clk 0:00:25]}  Qxh3 {[%clk 0:01:51]} 37. e6 {[%clk 0:00:21]}  h4 {[%clk 0:01:50]} 38. Qe3 {[%clk 0:00:17]}  hxg3 {[%clk 0:01:48]} 39. hxg3 {[%clk 0:00:13]}  Bh6 {[%clk 0:01:40]} 40. Qe5+ {[%clk 0:00:10]}  Bg7 {[%clk 0:01:41]} 41. Qf4 {[%clk 0:00:08]}  Bh6 {[%clk 0:01:38]} 42. Qf6+ {[%clk 0:00:08]}  Bg7 {[%clk 0:01:39]} 43. Qf4 {[%clk 0:00:07]}  Bh6 {[%clk 0:01:38]} 44. Qf6+ {[%clk 0:00:07]}  Bg7 {[%clk 0:01:39]} 45. Qf4 {[%clk 0:00:07]} 1/2-1/2


[Site "https://www.chess.com"]

[Event "Titled Tuesday Blitz May 23 Early 2023"]
[White "Fiedorek, Michal"]
[Black "Martin, Lewis"]
[WhiteFideId "1199528"]
[BlackFideId "410551"]
[WhiteElo "2135"]
[BlackElo "2145"]
[Result "0-1"]
[Round "08"]
[TimeControl "180+2"]
[Date "2023.05.23"]
[WhiteClock "0:00:00"]
[BlackClock "0:00:51"]

1. e4 {[%clk 0:03:00]}  c5 {[%clk 0:02:57]} 2. Nf3 {[%clk 0:03:00]}  d6 {[%clk 0:02:57]} 3. d4 {[%clk 0:03:00]}  cxd4 {[%clk 0:02:58]} 4. Nxd4 {[%clk 0:03:00]}  Nf6 {[%clk 0:02:58]} 5. Bg5 {[%clk 0:03:00]}  Nxe4 {[%clk 0:02:50]} 6. Be3 {[%clk 0:02:42]}  Nc6 {[%clk 0:02:40]} 7. Bd3 {[%clk 0:02:35]}  d5 {[%clk 0:02:36]} 8. Nxc6 {[%clk 0:02:16]}  bxc6 {[%clk 0:02:35]} 9. Bxe4 {[%clk 0:02:16]}  dxe4 {[%clk 0:02:35]} 10. Nc3 {[%clk 0:02:16]}  Qxd1+ {[%clk 0:02:32]} 11. Rxd1 {[%clk 0:02:16]}  f5 {[%clk 0:02:32]} 12. Bd4 {[%clk 0:01:59]}  e6 {[%clk 0:02:20]} 13. O-O {[%clk 0:01:44]}  Rg8 {[%clk 0:02:14]} 14. f3 {[%clk 0:01:42]}  exf3 {[%clk 0:02:13]} 15. Rxf3 {[%clk 0:01:42]}  Be7 {[%clk 0:02:13]} 16. Re1 {[%clk 0:01:38]}  Kf7 {[%clk 0:02:11]} 17. Na4 {[%clk 0:01:15]}  Rd8 {[%clk 0:02:01]} 18. c3 {[%clk 0:01:11]}  Rd5 {[%clk 0:02:00]} 19. Be5 {[%clk 0:00:42]}  Ba6 {[%clk 0:01:52]} 20. b3 {[%clk 0:00:34]}  Rad8 {[%clk 0:01:49]} 21. c4 {[%clk 0:00:26]}  Rd1 {[%clk 0:01:47]} 22. Kf2 {[%clk 0:00:18]}  R8d2+ {[%clk 0:01:32]} 23. Re2 {[%clk 0:00:18]}  Rxe2+ {[%clk 0:01:32]} 24. Kxe2 {[%clk 0:00:18]}  Rd7 {[%clk 0:01:15]} 25. g3 {[%clk 0:00:10]}  g6 {[%clk 0:01:14]} 26. Rf2 {[%clk 0:00:09]}  Bf6 {[%clk 0:01:10]} 27. Bxf6 {[%clk 0:00:08]}  Kxf6 {[%clk 0:01:11]} 28. Nc3 {[%clk 0:00:08]}  e5 {[%clk 0:01:05]} 29. Ke3 {[%clk 0:00:07]}  Rd4 {[%clk 0:01:04]} 30. Ne2 {[%clk 0:00:05]}  Re4+ {[%clk 0:01:03]} 31. Kd2 {[%clk 0:00:05]}  h5 {[%clk 0:00:58]} 32. Rf3 {[%clk 0:00:04]}  Ke7 {[%clk 0:00:53]} 33. Kd3 {[%clk 0:00:02]}  c5 {[%clk 0:00:51]} 34. Kd2 {[%clk 0:00:00]}  Bb7 {[%clk 0:00:51]} 0-1


[Site "https://www.chess.com"]

[Event "Titled Tuesday Blitz May 23 Early 2023"]
[White "agvania123"]
[Black "Petrova, Irina"]
[BlackFideId "14124122"]
[WhiteElo "2235"]
[BlackElo "2084"]
[Result "1-0"]
[Round "08"]
[TimeControl "180+2"]
[Date "2023.05.23"]
[WhiteClock "0:00:35"]
[BlackClock "0:01:14"]

1. Nf3 {[%clk 0:03:00]}  d6 {[%clk 0:03:00]} 2. g3 {[%clk 0:02:58]}  e5 {[%clk 0:02:59]} 3. Bg2 {[%clk 0:02:57]}  Nc6 {[%clk 0:03:00]} 4. O-O {[%clk 0:02:57]}  f5 {[%clk 0:03:01]} 5. c4 {[%clk 0:02:56]}  Nf6 {[%clk 0:03:01]} 6. Nc3 {[%clk 0:02:56]}  g6 {[%clk 0:03:01]} 7. d3 {[%clk 0:02:56]}  Bg7 {[%clk 0:03:02]} 8. e4 {[%clk 0:02:54]}  O-O {[%clk 0:03:02]} 9. h3 {[%clk 0:02:51]}  f4 {[%clk 0:03:00]} 10. Kh2 {[%clk 0:02:48]}  fxg3+ {[%clk 0:02:59]} 11. fxg3 {[%clk 0:02:49]}  h6 {[%clk 0:02:57]} 12. Be3 {[%clk 0:02:49]}  Be6 {[%clk 0:02:57]} 13. Qd2 {[%clk 0:02:48]}  Kh7 {[%clk 0:02:56]} 14. Nd5 {[%clk 0:02:49]}  Qd7 {[%clk 0:02:55]} 15. Rf2 {[%clk 0:02:41]}  Ng8 {[%clk 0:02:49]} 16. Raf1 {[%clk 0:02:38]}  Rae8 {[%clk 0:02:48]} 17. b4 {[%clk 0:02:24]}  Nd8 {[%clk 0:02:47]} 18. b5 {[%clk 0:02:20]}  c6 {[%clk 0:02:47]} 19. Nc3 {[%clk 0:02:19]}  Nf7 {[%clk 0:02:41]} 20. a4 {[%clk 0:02:15]}  Ne7 {[%clk 0:02:32]} 21. a5 {[%clk 0:02:07]}  d5 {[%clk 0:02:31]} 22. cxd5 {[%clk 0:02:03]}  cxd5 {[%clk 0:02:30]} 23. Bc5 {[%clk 0:01:43]}  d4 {[%clk 0:02:23]} 24. Nd5 {[%clk 0:01:43]}  Bxd5 {[%clk 0:02:21]} 25. exd5 {[%clk 0:01:42]}  Rc8 {[%clk 0:02:10]} 26. Bxe7 {[%clk 0:01:16]}  Qxe7 {[%clk 0:02:11]} 27. Re1 {[%clk 0:01:09]}  Qd7 {[%clk 0:02:09]} 28. b6 {[%clk 0:00:57]}  axb6 {[%clk 0:02:08]} 29. axb6 {[%clk 0:00:58]}  Rc3 {[%clk 0:02:03]} 30. Rc1 {[%clk 0:00:54]}  Rfc8 {[%clk 0:01:59]} 31. Rff1 {[%clk 0:00:52]}  Nd6 {[%clk 0:01:50]} 32. Rxc3 {[%clk 0:00:48]}  Rxc3 {[%clk 0:01:50]} 33. Rc1 {[%clk 0:00:49]}  Rxc1 {[%clk 0:01:47]} 34. Qxc1 {[%clk 0:00:49]}  Nf5 {[%clk 0:01:47]} 35. Nd2 {[%clk 0:00:47]}  Ne3 {[%clk 0:01:45]} 36. Ne4 {[%clk 0:00:46]}  Nxg2 {[%clk 0:01:24]} 37. Kxg2 {[%clk 0:00:46]}  Qxd5 {[%clk 0:01:25]} 38. Qc7 {[%clk 0:00:43]}  Kg8 {[%clk 0:01:22]} 39. Kf2 {[%clk 0:00:36]}  Bf8 {[%clk 0:01:14]} 40. Nf6+ {[%clk 0:00:35]} 1-0


[Site "https://www.chess.com"]

[Event "Titled Tuesday Blitz May 23 Early 2023"]
[White "Hinds, Nathan"]
[Black "Floresvillar Gonzalez, Luis Migu"]
[WhiteFideId "7400730"]
[BlackFideId "5100542"]
[WhiteElo "2001"]
[BlackElo "2040"]
[Result "1-0"]
[Round "08"]
[TimeControl "180+2"]
[Date "2023.05.23"]
[WhiteClock "0:00:13"]
[BlackClock "0:00:00"]

1. Nf3 {[%clk 0:02:57]}  d5 {[%clk 0:02:58]} 2. c4 {[%clk 0:02:52]}  c6 {[%clk 0:02:57]} 3. g3 {[%clk 0:02:50]}  Nf6 {[%clk 0:02:55]} 4. Bg2 {[%clk 0:02:48]}  Bg4 {[%clk 0:02:54]} 5. d4 {[%clk 0:02:46]}  e6 {[%clk 0:02:54]} 6. O-O {[%clk 0:02:40]}  Nbd7 {[%clk 0:02:52]} 7. b3 {[%clk 0:02:34]}  dxc4 {[%clk 0:02:37]} 8. bxc4 {[%clk 0:02:33]}  Bd6 {[%clk 0:02:26]} 9. Nc3 {[%clk 0:02:31]}  O-O {[%clk 0:02:25]} 10. e4 {[%clk 0:02:27]}  Bb4 {[%clk 0:02:19]} 11. Qb3 {[%clk 0:01:56]}  Bxc3 {[%clk 0:02:18]} 12. Qxc3 {[%clk 0:01:57]}  Nxe4 {[%clk 0:02:18]} 13. Qc2 {[%clk 0:01:54]}  f5 {[%clk 0:02:11]} 14. Bf4 {[%clk 0:01:50]}  Bxf3 {[%clk 0:01:45]} 15. Bxf3 {[%clk 0:01:50]}  Ndf6 {[%clk 0:01:42]} 16. Rfd1 {[%clk 0:01:45]}  Qb6 {[%clk 0:01:36]} 17. Rab1 {[%clk 0:01:28]}  Qa6 {[%clk 0:01:35]} 18. Qb3 {[%clk 0:00:52]}  Rf7 {[%clk 0:01:33]} 19. d5 {[%clk 0:00:46]}  exd5 {[%clk 0:01:28]} 20. cxd5 {[%clk 0:00:46]}  Nxd5 {[%clk 0:01:27]} 21. Rxd5 {[%clk 0:00:41]}  cxd5 {[%clk 0:01:26]} 22. Qxd5 {[%clk 0:00:42]}  Re8 {[%clk 0:01:13]} 23. Bh5 {[%clk 0:00:36]}  g6 {[%clk 0:01:09]} 24. Bf3 {[%clk 0:00:34]}  Qe6 {[%clk 0:01:07]} 25. Qa5 {[%clk 0:00:30]}  b6 {[%clk 0:01:06]} 26. Qb4 {[%clk 0:00:29]}  h5 {[%clk 0:00:51]} 27. h4 {[%clk 0:00:28]}  Qe7 {[%clk 0:00:36]} 28. Qb2 {[%clk 0:00:24]}  Qf6 {[%clk 0:00:32]} 29. Qb3 {[%clk 0:00:20]}  Kh7 {[%clk 0:00:28]} 30. Re1 {[%clk 0:00:19]}  Rfe7 {[%clk 0:00:27]} 31. Rd1 {[%clk 0:00:18]}  Qf7 {[%clk 0:00:26]} 32. Qb2 {[%clk 0:00:18]}  Nf6 {[%clk 0:00:23]} 33. Rd6 {[%clk 0:00:14]}  Re6 {[%clk 0:00:21]} 34. Rd4 {[%clk 0:00:09]}  Re1+ {[%clk 0:00:20]} 35. Kg2 {[%clk 0:00:09]}  R1e7 {[%clk 0:00:14]} 36. Bg5 {[%clk 0:00:09]}  Rd7 {[%clk 0:00:12]} 37. Rxd7 {[%clk 0:00:09]}  Nxd7 {[%clk 0:00:09]} 38. Qd4 {[%clk 0:00:09]}  Nc5 {[%clk 0:00:08]} 39. Bd5 {[%clk 0:00:09]}  Qg7 {[%clk 0:00:06]} 40. Qc4 {[%clk 0:00:09]}  Nd7 {[%clk 0:00:03]} 41. Bf3 {[%clk 0:00:09]}  Ne5 {[%clk 0:00:03]} 42. Bd5 {[%clk 0:00:09]}  Nxc4 {[%clk 0:00:02]} 43. Bxc4 {[%clk 0:00:09]}  Re6 {[%clk 0:00:02]} 44. Bb3 {[%clk 0:00:10]}  Rd6 {[%clk 0:00:02]} 45. Bc4 {[%clk 0:00:10]}  Rd7 {[%clk 0:00:02]} 46. Be2 {[%clk 0:00:11]}  a5 {[%clk 0:00:02]} 47. Bf3 {[%clk 0:00:11]}  b5 {[%clk 0:00:01]} 48. Bf4 {[%clk 0:00:12]}  b4 {[%clk 0:00:00]} 49. Bc1 {[%clk 0:00:13]} 1-0


[Site "https://www.chess.com"]

[Event "Titled Tuesday Blitz May 23 Early 2023"]
[White "Alexikov, Alexander"]
[Black "Cramling Bellon, Anna"]
[WhiteFideId "14103958"]
[BlackFideId "32009232"]
[WhiteElo "2186"]
[BlackElo "1976"]
[Result "1-0"]
[Round "08"]
[TimeControl "180+2"]
[Date "2023.05.23"]
[WhiteClock "0:00:46"]
[BlackClock "0:00:01"]

1. e4 {[%clk 0:03:00]}  c5 {[%clk 0:02:54]} 2. Nf3 {[%clk 0:03:00]}  e6 {[%clk 0:02:48]} 3. Nc3 {[%clk 0:02:58]}  Nc6 {[%clk 0:02:46]} 4. d4 {[%clk 0:02:57]}  cxd4 {[%clk 0:02:47]} 5. Nxd4 {[%clk 0:02:57]}  Nf6 {[%clk 0:02:47]} 6. Be2 {[%clk 0:02:56]}  Bb4 {[%clk 0:02:46]} 7. Nxc6 {[%clk 0:02:53]}  bxc6 {[%clk 0:02:44]} 8. e5 {[%clk 0:02:45]}  Nd5 {[%clk 0:02:39]} 9. Bd2 {[%clk 0:02:44]}  Qc7 {[%clk 0:02:13]} 10. f4 {[%clk 0:02:37]}  Nxc3 {[%clk 0:02:03]} 11. bxc3 {[%clk 0:02:35]}  Bc5 {[%clk 0:02:03]} 12. Bd3 {[%clk 0:02:31]}  d6 {[%clk 0:01:53]} 13. exd6 {[%clk 0:02:26]}  Qxd6 {[%clk 0:01:54]} 14. Qe2 {[%clk 0:02:25]}  O-O {[%clk 0:01:15]} 15. Be3 {[%clk 0:02:07]}  e5 {[%clk 0:01:02]} 16. Bxc5 {[%clk 0:02:05]}  Qxc5 {[%clk 0:01:02]} 17. Qxe5 {[%clk 0:02:05]}  Qxe5+ {[%clk 0:00:51]} 18. fxe5 {[%clk 0:02:04]}  Re8 {[%clk 0:00:52]} 19. Kd2 {[%clk 0:01:46]}  Rxe5 {[%clk 0:00:48]} 20. Rhe1 {[%clk 0:01:45]}  Rxe1 {[%clk 0:00:47]} 21. Rxe1 {[%clk 0:01:45]}  Be6 {[%clk 0:00:47]} 22. a4 {[%clk 0:01:40]}  c5 {[%clk 0:00:46]} 23. c4 {[%clk 0:01:37]}  Rd8 {[%clk 0:00:44]} 24. Kc3 {[%clk 0:01:33]}  g6 {[%clk 0:00:32]} 25. a5 {[%clk 0:01:29]}  Rd4 {[%clk 0:00:24]} 26. Re5 {[%clk 0:01:27]}  Rg4 {[%clk 0:00:20]} 27. g3 {[%clk 0:01:26]}  h5 {[%clk 0:00:16]} 28. Rxc5 {[%clk 0:01:22]}  h4 {[%clk 0:00:16]} 29. gxh4 {[%clk 0:01:12]}  Rxh4 {[%clk 0:00:16]} 30. Rc7 {[%clk 0:01:11]}  a6 {[%clk 0:00:13]} 31. Rc6 {[%clk 0:01:11]}  Rxh2 {[%clk 0:00:05]} 32. Bxg6 {[%clk 0:01:05]}  fxg6 {[%clk 0:00:01]} 33. Rxe6 {[%clk 0:01:03]}  Kf7 {[%clk 0:00:01]} 34. Rxa6 {[%clk 0:01:03]}  Rh5 {[%clk 0:00:02]} 35. Kb4 {[%clk 0:00:58]}  g5 {[%clk 0:00:01]} 36. Rd6 {[%clk 0:00:54]}  g4 {[%clk 0:00:01]} 37. a6 {[%clk 0:00:54]}  g3 {[%clk 0:00:01]} 38. a7 {[%clk 0:00:53]}  g2 {[%clk 0:00:01]} 39. a8=Q {[%clk 0:00:48]}  g1=Q {[%clk 0:00:02]} 40. Qb7+ {[%clk 0:00:47]}  Kg8 {[%clk 0:00:01]} 41. Rd8# {[%clk 0:00:46]} 1-0


[Site "https://www.chess.com"]

[Event "Titled Tuesday Blitz May 23 Early 2023"]
[White "Yanayt, Eugene"]
[Black "Sanudula, K M Dahamdi"]
[WhiteFideId "2020165"]
[BlackFideId "9932470"]
[WhiteElo "2083"]
[BlackElo "1556"]
[Result "0-1"]
[Round "08"]
[TimeControl "180+2"]
[Date "2023.05.23"]
[WhiteClock "0:00:00"]
[BlackClock "0:00:30"]

1. d4 {[%clk 0:02:50]}  Nf6 {[%clk 0:02:59]} 2. c4 {[%clk 0:02:48]}  e6 {[%clk 0:02:59]} 3. g3 {[%clk 0:02:47]}  d5 {[%clk 0:03:00]} 4. Nf3 {[%clk 0:02:47]}  Bb4+ {[%clk 0:03:00]} 5. Nc3 {[%clk 0:02:46]}  Be7 {[%clk 0:03:01]} 6. Bg2 {[%clk 0:02:45]}  b6 {[%clk 0:03:00]} 7. O-O {[%clk 0:02:41]}  Bb7 {[%clk 0:03:01]} 8. cxd5 {[%clk 0:02:41]}  exd5 {[%clk 0:03:00]} 9. Ne5 {[%clk 0:02:38]}  O-O {[%clk 0:03:00]} 10. Bf4 {[%clk 0:02:36]}  Nbd7 {[%clk 0:02:57]} 11. Rc1 {[%clk 0:02:33]}  c6 {[%clk 0:02:56]} 12. a4 {[%clk 0:02:25]}  Nxe5 {[%clk 0:02:50]} 13. Bxe5 {[%clk 0:02:23]}  Bd6 {[%clk 0:02:46]} 14. Bxd6 {[%clk 0:02:16]}  Qxd6 {[%clk 0:02:45]} 15. Qd3 {[%clk 0:02:01]}  Rfe8 {[%clk 0:02:42]} 16. Rfe1 {[%clk 0:02:00]}  Re7 {[%clk 0:02:40]} 17. f3 {[%clk 0:01:56]}  Rd8 {[%clk 0:02:39]} 18. Rcd1 {[%clk 0:01:54]}  Red7 {[%clk 0:02:38]} 19. Kh1 {[%clk 0:01:52]}  h6 {[%clk 0:02:33]} 20. Bh3 {[%clk 0:01:49]}  Re7 {[%clk 0:02:31]} 21. e4 {[%clk 0:01:49]}  dxe4 {[%clk 0:02:31]} 22. fxe4 {[%clk 0:01:49]}  c5 {[%clk 0:02:26]} 23. d5 {[%clk 0:01:48]}  Qe5 {[%clk 0:02:25]} 24. Qf3 {[%clk 0:01:36]}  Rde8 {[%clk 0:02:19]} 25. Bg2 {[%clk 0:01:17]}  Rd8 {[%clk 0:02:05]} 26. Kg1 {[%clk 0:01:12]}  a6 {[%clk 0:02:03]} 27. Qf4 {[%clk 0:00:59]}  Bc8 {[%clk 0:01:55]} 28. d6 {[%clk 0:00:54]}  Ree8 {[%clk 0:01:44]} 29. Nd5 {[%clk 0:00:44]}  Qxd6 {[%clk 0:01:32]} 30. e5 {[%clk 0:00:33]}  Nxd5 {[%clk 0:01:28]} 31. Bxd5 {[%clk 0:00:31]}  Qe7 {[%clk 0:01:19]} 32. Bc6 {[%clk 0:00:22]}  Rf8 {[%clk 0:01:16]} 33. Qe4 {[%clk 0:00:17]}  Be6 {[%clk 0:01:00]} 34. Rd3 {[%clk 0:00:11]}  c4 {[%clk 0:00:45]} 35. Rdd1 {[%clk 0:00:07]}  Qc7 {[%clk 0:00:40]} 36. Qg2 {[%clk 0:00:02]}  Bg4 {[%clk 0:00:37]} 37. Rc1 {[%clk 0:00:02]}  Bd7 {[%clk 0:00:35]} 38. Bd5 {[%clk 0:00:02]}  b5 {[%clk 0:00:34]} 39. axb5 {[%clk 0:00:01]}  axb5 {[%clk 0:00:34]} 40. Qf3 {[%clk 0:00:02]}  Be6 {[%clk 0:00:32]} 41. Be4 {[%clk 0:00:02]}  Qc5+ {[%clk 0:00:31]} 42. Kh1 {[%clk 0:00:02]}  Rd2 {[%clk 0:00:32]} 43. h3 {[%clk 0:00:02]}  Rf2 {[%clk 0:00:31]} 44. Qg4 {[%clk 0:00:00]}  Bxg4 {[%clk 0:00:30]} 0-1


[Site "https://www.chess.com"]

[Event "Titled Tuesday Blitz May 23 Early 2023"]
[White "Kriti Mayur Patel"]
[Black "Sovetbekova, Nurai"]
[WhiteFideId "35061780"]
[BlackFideId "13801910"]
[WhiteElo "1306"]
[BlackElo "1857"]
[Result "1-0"]
[Round "08"]
[TimeControl "180+2"]
[Date "2023.05.23"]
[WhiteClock "0:01:40"]
[BlackClock "0:01:05"]

1. e4 {[%clk 0:03:00]}  c5 {[%clk 0:02:58]} 2. d4 {[%clk 0:03:00]}  cxd4 {[%clk 0:02:57]} 3. c3 {[%clk 0:03:01]}  Nf6 {[%clk 0:02:57]} 4. e5 {[%clk 0:03:01]}  Nd5 {[%clk 0:02:58]} 5. Bc4 {[%clk 0:03:01]}  Nb6 {[%clk 0:02:56]} 6. Bb3 {[%clk 0:03:02]}  Nc6 {[%clk 0:02:52]} 7. Nf3 {[%clk 0:03:02]}  d6 {[%clk 0:02:51]} 8. exd6 {[%clk 0:03:02]}  Qxd6 {[%clk 0:02:51]} 9. O-O {[%clk 0:03:03]}  Be6 {[%clk 0:02:48]} 10. Na3 {[%clk 0:03:01]}  Bxb3 {[%clk 0:02:44]} 11. Qxb3 {[%clk 0:03:00]}  e6 {[%clk 0:02:39]} 12. Nb5 {[%clk 0:03:00]}  Qd8 {[%clk 0:02:39]} 13. Bf4 {[%clk 0:02:58]}  Nd5 {[%clk 0:02:38]} 14. Bg3 {[%clk 0:02:56]}  dxc3 {[%clk 0:02:33]} 15. bxc3 {[%clk 0:02:54]}  a6 {[%clk 0:02:32]} 16. Nbd4 {[%clk 0:02:40]}  Nxd4 {[%clk 0:02:25]} 17. cxd4 {[%clk 0:02:40]}  b5 {[%clk 0:02:13]} 18. Rac1 {[%clk 0:02:38]}  Bd6 {[%clk 0:02:13]} 19. Ne5 {[%clk 0:02:36]}  O-O {[%clk 0:02:11]} 20. f4 {[%clk 0:02:25]}  Rc8 {[%clk 0:01:50]} 21. f5 {[%clk 0:02:21]}  exf5 {[%clk 0:01:46]} 22. Qxd5 {[%clk 0:02:15]}  Qf6 {[%clk 0:01:26]} 23. Nd7 {[%clk 0:02:11]}  Qh6 {[%clk 0:01:21]} 24. Rxc8 {[%clk 0:01:47]}  Rxc8 {[%clk 0:01:20]} 25. Qxd6 {[%clk 0:01:44]}  Qe3+ {[%clk 0:01:18]} 26. Bf2 {[%clk 0:01:42]}  Qe2 {[%clk 0:01:16]} 27. Ne5 {[%clk 0:01:41]}  h6 {[%clk 0:01:09]} 28. Qd7 {[%clk 0:01:40]}  Rf8 {[%clk 0:01:05]} 29. Qxf5 {[%clk 0:01:40]} 1-0


[Site "https://www.chess.com"]